Cogmind - Beta 15 @@@ ROGUE MODE // 2025.10.10 @ 00:28:50 Player: Oertel Result: Destroyed by P-60 Hacker with Shock Rifle Performance ------------- Evolutions (3) 1500 Regions Visited (9) 1800 Robots Destroyed (114) 570 Value Destroyed (4329) 4329 Prototype IDs (24) 480 Alien Tech Used (0) 0 Bonus (1308) 1308 TOTAL SCORE: 9987 Bonus ------- High Alert Combat Kills 484 Follower Combat Kills 136 Entered Garrisons 400 Aligned with FarCom 300 Friendly Fire -12 Cogmind --------- Core Integrity 0/700 Matter 3/300 Energy 240/240 System Corruption 12% Temperature Cool (0) Movement Walking (270) Ox2 Location -7/Factory Parts ------- > --- POWER (1) -------- Nuclear Core > --- PROPULSION (4) --- Improved Titanium Leg > --- UTILITY (5) ------ High-capacity Storage Unit Terrain Scanner Core Analyzer Shock Absorption System > --- WEAPON (3) ------- Advanced Assault Cannon > --- INVENTORY (20) --- Light Nuclear Core Improved Deuterium Engine Reinforced Deuterium Engine Particle Reactor Improved Heat Sink Coolant Injector High-capacity Storage Unit High-capacity Matter Pod (0) Core Analyzer Core Analyzer Weapon Cycler Shock Absorption System Shock Absorption System High-powered Tractor Beam Peak State ------------ > --- POWER ------------ Light Nuclear Core > --- PROPULSION ------- Aluminum Leg Improved Carbon-fiber Leg Improved Titanium Leg > --- UTILITY ---------- High-capacity Storage Unit Targeting Computer Recoil Stabilizer Active Sensor Spoofer Improved Propulsion Shielding > --- WEAPON ----------- Railgun Smartbomb Launcher > --- INVENTORY -------- Light Nuclear Core Light Nuclear Core Light Nuclear Core Light Nuclear Core Light Nuclear Core Particle Reactor Aluminum Leg Aluminum Leg VSS Leg Improved Carbon-fiber Leg Improved Heat Sink High-capacity Storage Unit High-capacity Matter Pod Weapon Cycler Hardened Medium Armor Plating High-powered Tractor Beam Coil Gun Coil Gun Missile Launcher [Rating: 52] Favorites ----------- Power Improved Ion Engine Engine Improved Ion Engine Power Core Light Nuclear Core Propulsion Aluminum Leg Treads Light Treads Leg Aluminum Leg Utility Targeting Computer Device Weapon Cycler Storage High-capacity Storage Unit Processor Targeting Computer Protection Improved Propulsion Shielding Weapon Grenade Launcher Ballistic Gun Minigun Ballistic Cannon Light Cannon Launcher Grenade Launcher Special Weapon Plasma Cutter Slashing Weapon Blade Saw Build | -11 -10 -10 -10 -9 -8 -8 -7 -7 -7 ------- Run | Yrd Mat Min Exi Min Mat Gar Fac Gar Fac Slots Evolved 6 | . . . . . 4 . 2 . . Power . | . . . . . . . . . . Propulsion 2 | . . . . . 1 . 1 . . Utility 3 | . . . . . 3 . . . . Weapon 1 | . . . . . . . 1 . . Parts Attached 101 | 6 14 3 . 1 9 21 7 28 12 Power 13 | 1 1 . . . 1 3 . 4 3 Engine 5 | 1 1 . . . 1 2 . . . Core 8 | . . . . . . 1 . 4 3 Reactor . | . . . . . . . . . . Propulsion 26 | 2 1 2 . . 2 8 4 5 2 Treads 10 | . . 2 . . 2 5 . . 1 Leg 16 | 2 1 . . . . 3 4 5 1 Wheel . | . . . . . . . . . . Hover . | . . . . . . . . . . Flight . | . . . . . . . . . . Utility 28 | 1 2 . . . 5 5 1 8 6 Device 13 | . . . . . 5 1 1 3 3 Storage 2 | 1 1 . . . . . . . . Processor 4 | . 1 . . . . 1 . 1 1 Hackware . | . . . . . . . . . . Protection 9 | . . . . . . 3 . 4 2 Artifact . | . . . . . . . . . . Weapon 34 | 2 10 1 . 1 1 5 2 11 1 Energy Gun . | . . . . . . . . . . Energy Cannon . | . . . . . . . . . . Ballistic Gun 14 | 2 3 1 . . . 2 . 6 . Ballistic Cannon 7 | . 3 . . . 1 . 2 . 1 Launcher 10 | . 3 . . 1 . 2 . 4 . Special Weapon 2 | . 1 . . . . 1 . . . Impact Weapon . | . . . . . . . . . . Slashing Weapon 1 | . . . . . . . . 1 . Piercing Weapon . | . . . . . . . . . . Special Melee Weapon . | . . . . . . . . . . Unidentified Prototypes 1 | . . . . . . . . 1 . Parts Lost 62 | . 1 . 1 . 2 19 1 20 18 Power 9 | . . . . . . 3 . 3 3 Propulsion 18 | . . . . . 1 6 . 6 5 Utility 17 | . . . . . 1 2 1 7 6 Weapon 18 | . 1 . 1 . . 8 . 4 4 Highest Loss Streak 14 | . 1 . 1 . 1 14 1 6 12 To Critical Strikes 1 | . . . . . . . . 1 . Average Backups 17 | 2 15 19 19 18 19 13 15 19 17 Power 4 | . 4 5 4 4 3 2 2 6 4 Propulsion 3 | 1 3 5 4 2 1 1 2 3 . Utility 6 | . 4 5 5 6 8 7 9 5 11 Weapon 3 | . 2 4 4 4 5 1 2 3 . Tool/Special . | . . . . . . . . . . Unused Backups 51 | . 7 5 5 2 5 . 1 11 15 Power 19 | . . 2 4 . 3 . . 5 5 Propulsion 6 | . 2 1 . 1 . . . 2 . Utility 22 | . 3 1 1 1 1 . 1 4 10 Weapon 4 | . 2 1 . . 1 . . . . Tool/Special . | . . . . . . . . . . Average Slot Usage (%) 94 | . 99 100 99 100 86 79 98 93 76 Engine 9 | . 13 14 14 14 9 5 7 . . Core 1 | . . . . . . 1 . 6 5 Treads 13 | . . 25 28 28 24 13 . . 3 Leg 13 | . 27 2 . . . 10 29 27 19 Device 4 | . . . . . 17 5 3 11 7 Storage 11 | . 14 14 14 14 9 9 7 7 7 Processor 12 | . 13 14 14 14 9 14 15 9 8 Protection 2 | . . . . . . 8 10 7 7 Ballistic Gun 6 | . 9 . . 11 4 6 7 10 10 Ballistic Cannon 4 | . 7 3 . 11 5 2 13 2 3 Launcher 12 | . 11 24 27 5 7 1 . 5 . Peak Build Rating 52 | 6 11 14 15 17 36 29 38 52 51 Average Rating 21 | 5 10 11 13 15 32 18 29 45 36 On Entrance 19 | . 6 10 12 15 15 29 19 37 51 Naked Turns . | . . . . . . . . . . Heaviest Build 90 | 10 53 53 53 54 61 60 66 71 90 Greatest Support 75 | 20 20 42 42 42 62 60 69 75 60 Greatest Overweight (x) 5 | 1 5 2 1 1 1 5 1 2 3 Average Overweight (x) . | . 1 1 1 1 . 1 . . 1 Largest Inventory Capacity 20 | 8 20 20 20 20 20 20 20 20 20 Average Capacity 19 | 7 16 20 20 20 20 20 20 20 20 Most Carried 20 | 4 20 20 20 20 20 20 20 20 20 Average Carried 17 | 2 15 19 19 19 19 13 15 19 17 Final Capacity 20 | 8 20 20 20 20 20 20 20 20 20 Final Carried 20 | 4 20 20 20 19 20 11 20 20 14 Class Distribution -------------------- 72% | Mutant 10% | Scavenger-Bomber 9% | Scavenger-Mutant 6% | Bomber Dominant Class ---------------- Mutant | -10/Materials Mutant | -10/Mines Mutant | -10/Exiles Mutant | -9/Mines Mutant | -8/Materials Scavenger-Mutant | -8/Garrison Scavenger-Gunner | -7/Factory Bomber | -7/Garrison Mutant | -7/Factory Resources | -11 -10 -10 -10 -9 -8 -8 -7 -7 -7 ----------- Run | Yrd Mat Min Exi Min Mat Gar Fac Gar Fac Matter Collected 4500 | 206 599 236 211 209 404 535 205 1468 427 Remotely 408 | . . . . . 112 194 83 19 . Salvage Created 2991 | . 343 182 . 34 479 379 180 1189 205 Parts 164 | . 21 8 . 7 31 23 6 55 13 Haulers Intercepted 4 | . 2 . . . 1 . 1 . . Recyclers Shooed . | . . . . . . . . . . Parts Field Recycled . | . . . . . . . . . . Retrieved Matter . | . . . . . . . . . . Parts Self-Destructed . | . . . . . . . . . . Prevented . | . . . . . . . . . . Kills | -11 -10 -10 -10 -9 -8 -8 -7 -7 -7 ------- Run | Yrd Mat Min Exi Min Mat Gar Fac Gar Fac Combat Hostiles Destroyed 86 | . 8 5 . 6 11 16 2 31 7 Melee 4 | . . . . . . 1 . 3 . Guns 23 | . 2 . . 1 1 1 1 12 5 Cannons 19 | . 4 . . 2 4 2 1 5 1 AOE 40 | . 2 5 . 3 6 12 . 11 1 Classes Destroyed 17 | . 7 1 . 2 1 . . 6 . Worker 5 | . 2 . . . 2 . . . 1 Builder 8 | . . . . 1 5 . . . 2 Hauler 4 | . 2 . . . 1 . 1 . . Recycler 4 | . 1 . . . 2 . 1 . . Operator 2 | . 2 . . . . . . . . Drone 1 | . . . . . 1 . . . . Watcher 6 | . 2 . . . 3 . . . 1 Swarmer 24 | . 3 . . 5 3 6 . 4 3 Cutter 3 | . . . . . . . . 3 . Grunt 33 | . 5 3 . . 5 5 2 12 1 Brawler 3 | . . . . . . . . 2 1 Duelist 1 | . . . . . . . . 1 . Sentry 15 | . . 2 . . 3 5 . 4 1 Specialist 3 | . . . . . . . . 3 . Programmer 2 | . . . . . . . . 1 1 Behemoth 1 | . . . . . . . . 1 . Assembled 1 | . . . . 1 . . . . . Best Kill Streak 9 | . 5 3 . 2 9 6 2 5 3 Combat Bots Only 7 | . 3 3 . 2 7 6 2 5 3 Max Kills in Single Turn 4 | . 3 2 . 1 4 3 1 2 2 Gunslinging 1 | . . . . . . . . 1 1 Exploded 3 | . 2 2 . 1 2 3 . 2 1 Melee 1 | . . . . . . 1 . 1 . Uniques/NPCs Destroyed . | . . . . . . . . . . Combat | -11 -10 -10 -10 -9 -8 -8 -7 -7 -7 -------- Run | Yrd Mat Min Exi Min Mat Gar Fac Gar Fac Hostile Shots Fired 1208 | . 62 32 . 46 64 306 14 378 306 Missed 382 | . 16 18 . 13 30 90 5 113 97 Hits 826 | . 46 14 . 33 34 216 9 265 209 Melee 10 | . . . . . . . . 5 5 Projectile 816 | . 46 14 . 33 34 216 9 260 204 AOE 2 | . . . . . . . . 2 . Critical Strikes 17 | . 2 . . . 3 5 . 6 1 Damage Taken 9768 | . 603 234 27 282 572 2304 141 3047 2558 Core 1287 | . 103 14 . 55 49 360 33 380 293 Absorbed by Shields 108 | . . . . . . 58 . 50 . Redirected to Shielding 207 | . . . . . . . . 207 . Ignored by Resistances 110 | . . . . . . . . . 110 Regen/Repaired (Parts) 530 | . 136 . . . 27 24 . . 343 Core Remaining (%) 52 | 100 . . . 31 . 25 . . . Volleys Fired 264 | . 44 6 . 13 31 25 10 84 51 Largest 3 | . 2 2 . 2 2 2 3 3 3 Hottest 109 | . 60 60 . 63 63 66 97 109 96 Shots Fired 525 | . 86 12 1 26 61 40 30 181 88 Gun 243 | . 40 2 . 10 19 9 10 101 52 Cannon 181 | . 40 4 . 10 21 11 20 48 27 Launcher 95 | . 4 6 1 6 21 16 . 32 9 Special 6 | . 2 . . . . 4 . . . Kinetic 424 | . 80 6 . 20 40 20 30 149 79 Thermal 6 | . 2 . . . . 4 . . . Explosive 90 | . 4 6 1 6 21 11 . 32 9 Electromagnetic 5 | . . . . . . 5 . . . Robot Hit Streak 16 | . 8 3 . 5 8 8 8 16 12 Robot Miss Streak 8 | . 7 1 . 5 2 3 2 4 8 Penetration Max 1 | . . . . . . . . 1 1 Secondary Targets 3 | . . . . . . . . 1 2 Max Gunslinging Chain 1 | . . . . . . . . 1 1 Shots Hit Robots 310 | . 41 4 . 9 36 22 20 119 59 Core Hits 219 | . 24 7 . 9 41 32 8 64 34 Critical Kills . | . . . . . . . . . . Critical Parts Destroyed . | . . . . . . . . . . Critical Strikes 7 | . . . . . 2 1 . 2 2 Blast 5 | . . . . . 2 1 . . 2 Sever 2 | . . . . . . . . 2 . Melee Attacks 6 | . . . . . . . . 6 . Impact . | . . . . . . . . . . Slashing 6 | . . . . . . . . 6 . Piercing . | . . . . . . . . . . Sneak Attacks 6 | . . . . . . . . 6 . Combat Hostiles . | . . . . . . . . . . Follow-up Attacks . | . . . . . . . . . . Damage Inflicted 10579 | . 1140 191 . 499 1465 1201 399 4227 1457 Guns 3228 | . 364 18 . 50 190 88 117 1639 762 Cannons 2386 | . 347 52 . 128 289 134 282 701 453 Explosions 4622 | . 405 106 . 309 980 932 . 1664 226 Melee 198 | . . . . . . . . 198 . Ramming 123 | . 24 15 . 12 6 25 . 25 16 Kinetic 5614 | . 711 70 . 178 479 222 399 2340 1215 Thermal 60 | . . . . . . 60 . . . Explosive 4459 | . 405 106 . 309 980 769 . 1664 226 Electromagnetic 125 | . . . . . . 125 . . . Impact . | . . . . . . . . . . Slashing 198 | . . . . . . . . 198 . Piercing . | . . . . . . . . . . Highest Corruption 12 | . 1 1 1 1 . . 1 7 12 Average Corruption 2 | . 1 1 1 1 . . 1 5 8 Corruption Purged . | . . . . . . . . . . Corruption Blocked . | . . . . . . . . . . Effects 154 | . 17 16 13 9 . . 2 59 38 Message Errors 26 | . 4 2 1 2 . . . 11 6 Matter Fused 36 | . 8 6 3 2 . . . 10 7 Heat Flow Errors 19 | . . 1 3 1 . . . 8 6 Energy Discharges 30 | . 3 2 3 2 . . 1 10 9 Parts Fused 2 | . . . . . . . . 1 1 Data Loss (minor) 18 | . 1 2 2 1 . . . 10 2 Data Loss (major) 6 | . . 2 . 1 . . 1 1 1 Misfires 5 | . . . 1 . . . . 2 2 Alerts 5 | . 1 1 . . . . . 2 1 Weapon Failures 7 | . . . . . . . . 4 3 Overload Shots . | . . . . . . . . . . Overflow Damage 116 | . 35 . 8 . 8 27 . 10 28 Projectiles 30 | . 12 . . . 4 . . . 14 Explosions 86 | . 23 . 8 . 4 27 . 10 14 Melee . | . . . . . . . . . . Knockbacks 30 | . 9 . . 3 5 . 7 2 4 Impact . | . . . . . . . . . . Kinetic 25 | . 7 . . 3 4 . 5 2 4 Secondary 5 | . 2 . . . 1 . 2 . . Self-Inflicted Damage 631 | . 164 31 27 . 67 16 . 105 221 Shots 15 | . 2 1 1 . 2 2 . 4 3 Rammed 15 | . . 2 . 1 2 10 . . . Targets Rammed 23 | . 3 2 . 2 2 10 . 3 1 Kicked 7 | . 3 . . . . . . 3 1 Crushed 1 | . . . . 1 . . . . . Highest Temperature 353 | . 30 145 235 161 63 98 143 353 272 Average Temperature 57 | . 6 30 96 27 12 31 62 71 82 Received Heat Transfer 2624 | . 126 66 . 20 288 512 81 1207 324 Siege Activations . | . . . . . . . . . . Martial Activations . | . . . . . . . . . . Shielding Activations . | . . . . . . . . . . Robots Disrupted . | . . . . . . . . . . Combat Hostiles . | . . . . . . . . . . Robots Corrupted . | . . . . . . . . . . Combat Hostiles . | . . . . . . . . . . Parts Fried . | . . . . . . . . . . Impact Corruptions . | . . . . . . . . . . Robots Melted . | . . . . . . . . . . Combat Hostiles . | . . . . . . . . . . Parts Melted . | . . . . . . . . . . Heat Transferred 124 | . . . . . . 124 . . . Parts Sabotaged . | . . . . . . . . . . Parts Stolen . | . . . . . . . . . . Parts Stripped . | . . . . . . . . . . Power Chain Reactions 1 | . . . . . . 1 . . . Alert | -11 -10 -10 -10 -9 -8 -8 -7 -7 -7 ------- Run | Yrd Mat Min Exi Min Mat Gar Fac Gar Fac Maximum Alert Level 4 | . . . . . 1 1 . 4 3 Low Security (%) 67 | 100 100 100 . 100 98 11 100 7 . Level 1 9 | . . . . . 1 88 . 16 . Level 2 12 | . . . . . . . . 28 68 Level 3 8 | . . . . . . . . 26 31 Level 4 3 | . . . . . . . . 20 . Level 5 . | . . . . . . . . . . High Security . | . . . . . . . . . . Max Security . | . . . . . . . . . . Peak Influence 1441 | . 148 80 . 112 201 352 184 1441 783 Initial 756 | . . 43 . . . 122 184 16 756 Average 225 | . 33 7 . 19 20 289 105 686 640 Influence Increases 3763 | . 402 145 . 218 459 420 63 1665 391 Destroy 0b10 Robot/C 1800 | . 160 100 . 140 220 320 40 680 140 Destroy 0b10 Robot/NC 150 | . 45 . . 5 65 . 10 5 20 Destroy Leader 240 | . 48 10 . 10 58 30 12 30 42 Allied During Kill 12 | . . . . . . . . 12 . Successful Hack 103 | . 27 . . 5 9 14 . 16 32 Disable Machine 195 | . 60 . . . 30 . . 45 60 Anti-Garrison Action 600 | . . . . . . . . 600 . Destroy Structure 573 | . 62 35 . 28 77 56 1 217 97 Lose Combat Pursuer 90 | . . . . 30 . . . 60 . Influence Decreases 3282 | . 290 257 . 218 270 257 392 247 1351 Entered New Map 996 | . . 69 . . . 67 168 7 685 Time Decay 1566 | . 280 188 . 218 180 . 214 . 486 Lost Part 610 | . 10 . . . 20 190 10 200 180 Lost Ally 40 | . . . . . . . . 40 . Purge Threat 70 | . . . . . 70 . . . . Squads Dispatched 13 | . 3 1 . . 4 . 1 . 4 Investigation 4 | . 1 1 . . 1 . 1 . . Extermination 3 | . . . . . . . . . 3 Reinforcement 5 | . 2 . . . 2 . . . 1 Assault . | . . . . . . . . . . Garrison 1 | . . . . . 1 . . . . Intercept . | . . . . . . . . . . Searches Triggered . | . . . . . . . . . . Construction Impeded 3 | . . . . . 2 . . . 1 Haulers Reinforced . | . . . . . . . . . . Active Scanning Responses . | . . . . . . . . . . Cargo Convoy Interrupts . | . . . . . . . . . . Stealth | -11 -10 -10 -10 -9 -8 -8 -7 -7 -7 --------- Run | Yrd Mat Min Exi Min Mat Gar Fac Gar Fac Distress Signals 1 | . 1 . . . . . . . . Communications Jammed . | . . . . . . . . . . Distress Signals . | . . . . . . . . . . Times Spotted 121 | . 15 5 . 16 17 20 2 35 11 Peak Tracking Total 10 | . 3 3 . 10 5 10 2 5 3 Tactical Retreats 4 | . . . . 2 . . . 2 . Traps | -11 -10 -10 -10 -9 -8 -8 -7 -7 -7 ------- Run | Yrd Mat Min Exi Min Mat Gar Fac Gar Fac Traps Triggered 12 | . 1 . . . . 3 . 6 2 Indirectly 1 | . . . . . . 1 . . . Trap Hack Attempts . | . . . . . . . . . . Triggered . | . . . . . . . . . . Disarmed . | . . . . . . . . . . Reprogrammed . | . . . . . . . . . . Reused . | . . . . . . . . . . Traps Extracted . | . . . . . . . . . . Installed . | . . . . . . . . . . Triggered . | . . . . . . . . . . Machines | -11 -10 -10 -10 -9 -8 -8 -7 -7 -7 ---------- Run | Yrd Mat Min Exi Min Mat Gar Fac Gar Fac Machines Disabled 19 | . 4 . . . 2 . . 9 4 Max in Single Turn 4 | . 1 . . . 1 . . 1 4 Garrison Relay 4 | . . . . . . . . 4 . Machines Repaired . | . . . . . . . . . . Machines Dismantled . | . . . . . . . . . . Machines Sabotaged . | . . . . . . . . . . Overloaded Fab Kills . | . . . . . . . . . . Hacking | -11 -10 -10 -10 -9 -8 -8 -7 -7 -7 --------- Run | Yrd Mat Min Exi Min Mat Gar Fac Gar Fac Machines Accessed 24 | . 7 1 5 1 3 1 2 1 3 Terminals 12 | . 4 . . 1 2 1 1 1 2 Fabricators . | . . . . . . . . . . Repair Stations 2 | . 1 . . . . . . . 1 Recycling Units 2 | . 2 . . . . . . . . Scanalyzers . | . . . . . . . . . . Garrison Access 2 | . . . . . 1 . 1 . . Total Hacks 99 | . 23 1 50 2 7 1 3 2 10 Successful 89 | . 21 1 50 1 5 1 2 1 7 Failed 10 | . 2 . . 1 2 . 1 1 3 Catastrophic 3 | . 1 . . . 1 . . . 1 Database Lockouts . | . . . . . . . . . . Manual 6 | . . . 5 . . . 1 . . Terminals 27 | . 10 . . 2 5 1 2 2 5 Fabricators . | . . . . . . . . . . Repair Stations 16 | . 11 . . . . . . . 5 Recycling Units 2 | . 2 . . . . . . . . Scanalyzers . | . . . . . . . . . . Garrison Access 3 | . . . . . 2 . 1 . . Terminal Hacks 70 | . 8 1 50 1 4 1 1 1 3 Record 54 | . . . 49 . 1 . 1 . 3 Open Door 1 | . . 1 . . . . . . . Unreport Threat 1 | . . . . . 1 . . . . Locate Traps 3 | . 2 . . . 1 . . . . Dispatch Records 2 | . 2 . . . . . . . . Transport Status 1 | . 1 . . . . . . . . Hauler Manifests 2 | . 1 . . . 1 . . . . Registered Components 1 | . 1 . . . . . . . . Zone Layout 2 | . 1 . . 1 . . . . . Garrison Registry 1 | . . . . . . 1 . . . Security Stations 1 | . . . . . . . . 1 . Proto ID Catalog 1 | . . . 1 . . . . . . Fabricator Hacks . | . . . . . . . . . . Repair Station Hacks 15 | . 11 . . . . . . . 4 Scan Component 8 | . 6 . . . . . . . 2 Repair 7 | . 5 . . . . . . . 2 Recycling Unit Hacks 2 | . 2 . . . . . . . . Report Inventory 2 | . 2 . . . . . . . . Scanalyzer . | . . . . . . . . . . Garrison Access Hacks 2 | . . . . . 1 . 1 . . Unlock Access 2 | . . . . . 1 . 1 . . Unauthorized Hacks . | . . . . . . . . . . Terminals . | . . . . . . . . . . Fabricators . | . . . . . . . . . . Repair Stations . | . . . . . . . . . . Recycling Units . | . . . . . . . . . . Scanalyzers . | . . . . . . . . . . Garrison Access . | . . . . . . . . . . Data Cores Recovered . | . . . . . . . . . . Used . | . . . . . . . . . . Hacking Detections 11 | . 4 . . . 2 . 1 1 3 Full Trace Events 2 | . . . . . 1 . 1 . . Feedback Events 1 | . . . . . . . 1 . . Corruption 1 | . . . . . . . 1 . . Feedback Blocked . | . . . . . . . . . . Robot Schematics Acquired . | . . . . . . . . . . Robots Built . | . . . . . . . . . . Authchips . | . . . . . . . . . . Time . | . . . . . . . . . . Total Robot Build Rating . | . . . . . . . . . . Part Schematics Acquired . | . . . . . . . . . . Parts Built . | . . . . . . . . . . Authchips . | . . . . . . . . . . Time . | . . . . . . . . . . Total Part Build Rating . | . . . . . . . . . . Parts Repaired 7 | . 5 . . . . . . . 2 Time 224 | . 136 . . . . . . . 88 Parts Recycled . | . . . . . . . . . . Recycled Matter . | . . . . . . . . . . Retrieved Matter . | . . . . . . . . . . Retrieved Components . | . . . . . . . . . . Parts Scanalyzed . | . . . . . . . . . . Part Schematics Acquired . | . . . . . . . . . . Parts Damaged . | . . . . . . . . . . Bothacking | -11 -10 -10 -10 -9 -8 -8 -7 -7 -7 ------------ Run | Yrd Mat Min Exi Min Mat Gar Fac Gar Fac Used RIF Installer . | . . . . . . . . . . Robots Hacked . | . . . . . . . . . . Non-combat . | . . . . . . . . . . Combat . | . . . . . . . . . . Robot Hacks Applied . | . . . . . . . . . . Relay Couplers Released 19 | . . . . . . . . 19 . Machine Destruction 19 | . . . . . . . . 19 . Fabnet Peak Effective % . | . . . . . . . . . . Robots Rewired . | . . . . . . . . . . Allies Hacked . | . . . . . . . . . . Hacks Repelled . | . . . . . . . . . . Allies | -11 -10 -10 -10 -9 -8 -8 -7 -7 -7 -------- Run | Yrd Mat Min Exi Min Mat Gar Fac Gar Fac Total Allies 3 | . . 1 . . . . . 2 . Largest Group 2 | . . 1 . . . . . 2 . Highest-Rated Group 190 | . . 31 . . . . . 190 . Highest-Rated Ally 95 | . . 31 . . . . . 95 . Initial Warlord ECA Mod 7 | . . . . . . . . . 7 Total Orders . | . . . . . . . . . . Ally Attacks 31 | . . . . 14 . . . 17 . Total Damage 1556 | . . . . 687 . . . 869 . Kills 11 | . . . . 8 . . . 3 . Allies Corrupted . | . . . . . . . . . . Allies Melted . | . . . . . . . . . . Turrets Deployed 2 | . . . . 2 . . . . . Intel | -11 -10 -10 -10 -9 -8 -8 -7 -7 -7 ------- Run | Yrd Mat Min Exi Min Mat Gar Fac Gar Fac Active Infowar (turns) 705 | . . . . . . . . 642 63 Terrain 29 | . . . . . . . . . 29 Spoofing 676 | . . . . . . . . 642 34 Robot Analysis Total . | . . . . . . . . . . Derelict Logs Recovered 2 | . . 1 . 1 . . . . . Drone Launches 1 | . . . . . 1 . . . . Drone Recoveries . | . . . . . . . . . . Exploration | -11 -10 -10 -10 -9 -8 -8 -7 -7 -7 ------------- Run | Yrd Mat Min Exi Min Mat Gar Fac Gar Fac Turns Passed 14476 | 72 2937 2388 2036 1258 991 820 441 2264 1269 Spaces Moved 6325 | 51 1296 979 854 517 425 282 207 1275 439 Core 3 | 3 . . . . . . . . . Treads 2949 | . . 887 854 517 425 165 . . 101 Legs 3373 | 48 1296 92 . . . 117 207 1275 338 Wheels . | . . . . . . . . . . Hover . | . . . . . . . . . . Flight . | . . . . . . . . . . Fastest Speed 50 | 50 120 232 232 232 155 160 127 125 190 Average Speed 201 | 117 196 234 232 232 180 216 174 149 228 Slowest Speed 470 | 120 470 260 232 232 240 470 195 270 340 Overloaded Moves . | . . . . . . . . . . Propulsion Burnouts . | . . . . . . . . . . Robots Hopped 3 | . . . . 3 . . . . . Potential Cave-ins . | . . . . . . . . . . Cave-ins Triggered . | . . . . . . . . . . Exploration Rate (%) 54 | 4 100 93 94 84 26 33 4 89 13 Regions Visited 9 Branch Regions 3 Pre-discovered Areas 2 | . . . 1 1 . . . . . Known Exits Taken 2 | . . . . . 1 . 1 . . Unknown Exits Taken 5 | 1 1 1 1 1 . . . . . Scrap Searched 4 | . . 1 . 3 . . . . . Spaces Dug . | . . . . . . . . . . Terrain Destroyed 670 | . 61 49 6 49 106 15 . 268 116 Melee . | . . . . . . . . . . Projectile 26 | . . . . . 1 . . 18 7 AOE 643 | . 61 49 6 49 105 15 . 249 109 Terrain Rammed 1 | . . . . . . . . . 1 Walls Destroyed . | . . . . . . . . . . Machines Disabled . | . . . . . . . . . . Actions | -11 -10 -10 -10 -9 -8 -8 -7 -7 -7 --------- Run | Yrd Mat Min Exi Min Mat Gar Fac Gar Fac Total 7593 | 60 1608 1058 918 548 594 427 268 1487 625 Wait 547 | . 190 49 43 6 93 53 13 4 96 Move 6307 | 50 1295 978 853 510 424 281 207 1270 439 Hop 3 | . . . . 3 . . . . . Pick Up 156 | 4 36 6 11 4 16 10 19 38 12 Fast Attach 24 | 6 4 1 . . 2 4 . 4 3 Attach 59 | . 1 . 1 . 5 18 3 20 11 Detach 4 | . . . . . 2 1 . 1 . Swap 80 | . 16 8 . 4 8 17 8 15 4 Drop 97 | . 19 8 10 6 11 4 8 24 7 Fire 264 | . 44 6 . 13 31 25 10 84 51 Melee 6 | . . . . . . . . 6 . Ram 1 | . . . . . . . . . 1 Kick 7 | . 3 . . . . . . 3 1 Crush 16 | . . 2 . 2 2 10 . . . Escape Stasis 22 | . . . . . . 4 . 18 . Rewire . | . . . . . . . . . . Trap . | . . . . . . . . . . Miscellaneous . | . . . . . . . . . . Route ------- -11/Scrapyard -10/Materials (discovered 5 exits: *Mat x3 / *Min / [*Sub]) -10/Mines (discovered 3 exits: *Mat x2 / *Exi) -10/Exiles (discovered 2 exits: *Min x2) -9/Mines -8/Materials -8/Garrison (discovered 3 exits: *Fac x3) -7/Factory -7/Garrison (discovered 2 exits: *Fac x2) -7/Factory (discovered 1 exit: [*Fac]) History --------- Turn | Location | Event 12 | -11/Scrapyard | Discovered new exit (range 15) 73 | -11/Scrapyard | Entered Materials 307 | -10/Materials | Build established: Mutant 362 | -10/Materials | Discovered new exit (range 11) 559 | -10/Materials | Discovered new exit (range 8) 839 | -10/Materials | Discovered new exit (range 14) 1238 | -10/Materials | Discovered new exit (range 13) 1506 | -10/Materials | Discovered new exit (range 5) 2415 | -10/Materials | Repaired Lgt. Ion Engine 2441 | -10/Materials | Repaired Aluminum Leg 2484 | -10/Materials | Repaired Imp. Ion Engine 2518 | -10/Materials | Repaired Aluminum Leg 2546 | -10/Materials | Repaired Lgt. Cannon 3010 | -10/Materials | Entered Mines 3022 | -10/Mines | Met a Derelict bent on vengeance 3241 | -10/Mines | Met a Derelict shopkeep closing up shop 3364 | -10/Mines | Identified exit to Materials 4474 | -10/Mines | Discovered exit to Materials (range 7) 4486 | -10/Mines | Received a Mining Laser from a helpful Derelict 5287 | -10/Mines | Deemed a non-threat by the Exiles lab entrance 5287 | -10/Mines | Discovered new exit (range 5) 5398 | -10/Mines | Entered Exiles 5563 | -10/Exiles | Met 8R-AWN 5619 | -10/Exiles | Discovered new exit (range 15) 5723 | -10/Exiles | Met EX-HEX 5883 | -10/Exiles | Visited The Gauntlet 6136 | -10/Exiles | Met EX-DEC 6197 | -10/Exiles | Learned location of Zion (-6) 6357 | -10/Exiles | Discovered new exit (range 14) 6526 | -10/Exiles | Met EX-BIN 6556 | -10/Exiles | Aligned with FarCom system 6558 | -10/Exiles | Given EX-Vault access code 6665 | -10/Exiles | Opened EX-Vault 6723 | -10/Exiles | Warned to stay clear of 0b10 Research branches 6772 | -10/Exiles | Found Prototype Device 6782 | -10/Exiles | Identified Supersonic Drone Bay 7003 | -10/Exiles | Found Deploy-a-Sentry 7009 | -10/Exiles | Found Deploy-a-Sentry 7434 | -10/Exiles | Stole two prototypes: Supersonic Drone Bay, Deploy-a-Sentry 7434 | -10/Exiles | Entered Mines 7441 | -9/Mines | Received a Rocket Launcher from a helpful Derelict 7444 | -9/Mines | Core integrity fell below 50% 7477 | -9/Mines | DAS Turret deployed 7658 | -9/Mines | Learned location of Storage (-7) 7925 | -9/Mines | Found a Scrap Suit stashed away for nefarious purposes 7935 | -9/Mines | Found Scrap Suit 8447 | -9/Mines | Assembled infested the area 8452 | -9/Mines | Assisted by a Guerilla fighting off Assembled 8470 | -9/Mines | DAS Turret deployed 8583 | -9/Mines | Discovered new exit (range 10) 8692 | -9/Mines | Entered Materials 8692 | -8/Materials | Evolved 4 slots: Propulsion x1, Utility x3 9574 | -8/Materials | Identified exit to Garrison 9596 | -8/Materials | Garrison activated, responded to threat 9660 | -8/Materials | Destroyed 7 combat bots 9683 | -8/Materials | Entered Garrison 9753 | -8/Garrison | Triggered checkpoint 9755 | -8/Garrison | Triggered checkpoint 9806 | -8/Garrison | Lost 3 parts (1p2n) 9899 | -8/Garrison | Triggered checkpoint 9907 | -8/Garrison | Triggered checkpoint 9972 | -8/Garrison | Core integrity fell below 50% 10017 | -8/Garrison | Lost 14 parts (2p3n2u7w) 10463 | -8/Garrison | Discovered new exit (range 10) 10480 | -8/Garrison | Discovered new exit (range 72) 10480 | -8/Garrison | Discovered new exit (range 9) 10480 | -8/Garrison | Discovered new exit (range 60) 10501 | -8/Garrison | Build established: Scavenger-Mutant 10503 | -8/Garrison | Entered Factory 10503 | -7/Factory | Evolved 2 slots: Propulsion x1, Weapon x1 10505 | -7/Factory | FarCom data flow suspended 10944 | -7/Factory | Identified exit to Garrison 10944 | -7/Factory | Entered Garrison 11074 | -7/Garrison | Triggered checkpoint 11156 | -7/Garrison | Build established: Bomber 11192 | -7/Garrison | Triggered checkpoint 11210 | -7/Garrison | Triggered checkpoint 11333 | -7/Garrison | Discovered new exit (range 12) 11380 | -7/Garrison | Triggered checkpoint 11397 | -7/Garrison | Garrison Relay disabled 11505 | -7/Garrison | H-XX Assembler disabled 11656 | -7/Garrison | Lost 5 parts (1p1n2u1w) 11938 | -7/Garrison | Build established: Scavenger-Mutant 11964 | -7/Garrison | Attempted to access garrison exit controls, blocked by remote lockdown 12144 | -7/Garrison | Triggered checkpoint 12178 | -7/Garrison | Triggered checkpoint 12341 | -7/Garrison | Found embedded Infiltrators 12444 | -7/Garrison | Build established: Scavenger-Bomber 12447 | -7/Garrison | Spotted B-75 Beast 12447 | -7/Garrison | Spotted B-75 Beast 12474 | -7/Garrison | Allies destroyed B-75 Beast 12483 | -7/Garrison | Destroyed B-75 Beast 12495 | -7/Garrison | Lost 4 parts (1p1n1u1w) 12892 | -7/Garrison | Discovered new exit (range 12) 12940 | -7/Garrison | Core integrity fell below 50% 12976 | -7/Garrison | Lost 6 parts (1p2n1u2w) 13000 | -7/Garrison | Triggered checkpoint 13028 | -7/Garrison | Learned Factory security intel 13045 | -7/Garrison | Garrison Relay disabled 13208 | -7/Garrison | Entered Factory 13768 | -7/Factory | Discovered new exit (range 15) 13865 | -7/Factory | Lost 12 parts (2p2n4u4w) 14061 | -7/Factory | Build established: Mutant 14146 | -7/Factory | Repaired Imp. Medium Armor Plating 14192 | -7/Factory | Repaired Imp. Titanium Leg 14212 | -7/Factory | Core integrity fell below 20% 14440 | -7/Factory | System corruption reached 10% 14477 | -7/Factory | Destroyed by P-60 Hacker with Shock Rifle Last Messages --------------- 14342_ U-05 Engineer lays Concrete. 14346_ System corrupted: Heat flow error (+168). 14346_ U-05 Engineer lays Concrete. 14358_ The unstable cave ceiling collapses. 14360_ U-05 Engineer lays Concrete. 14361_ System corrupted: Matter fused (-5). 14365_ ALERT: Cargo convoy en route, clear transfer corridor. 14367_ ALERT: Potential suspicious activity detected, Programmers report to Factory Zone 9D. 14384_ U-05 Engineer lays Concrete. 14402_ System corrupted: Heat flow error (+280). 14420_ System corrupted: IFF burst signal emitted. 14420_ T-07 Excavator destroyed. 14436_ Imp. Medium Armor Plating destroyed. 14441_ System corrupted: Matter fused (-10). 14445_ Med. Treads destroyed. 14470_ H2P<77J4JE